lending/lending_fUSD_20241124
["ID","MTS","AMOUNT","RATE_DAILY","PERIOD"]
[343181573,1732421434550,-508.41646666,0.00043697,2]
[343181574,1732421434560,-500.0,0.00043697,2]
[343181575,1732421434570,-542.96529044,0.00043697,2]
[343181576,1732421434579,-500.0,0.00043697,2]
[343181577,1732421434588,-511.30712411,0.00043697,2]
[343181578,1732421434598,-500.0,0.00043697,2]
[343181579,1732421434607,-500.0,0.00043697,2]
[343181580,1732421434617,-546.12996294,0.00043697,2]
[343181581,1732421434627,-205.343171,0.00043697,14]
[343181582,1732421434636,-1427.83,0.00043697,2]
[343181583,1732421434647,-500.0,0.00043697,2]
[343181584,1732421434656,-500.0,0.00043697,2]
[343181585,1732421434666,-500.0,0.00043697,2]
[343181586,1732421434677,-500.0,0.00043697,2]
[343181587,1732421434687,-500.0,0.00043697,2]
[343181588,1732421434697,-151.0,0.00043697,14]
[343181589,1732421434707,-151.0,0.00043697,14]
[343181590,1732421434716,-500.0,0.00043697,2]
[343181591,1732421434726,-151.0,0.00043697,14]
[343181592,1732421434736,-151.0,0.00043697,14]
[343181593,1732421434745,-500.0,0.00043697,2]
[343181594,1732421434755,-510.63605518,0.00043697,2]
[343181595,1732421434765,-557.03077769,0.00043697,2]
[343181596,1732421434775,-151.0,0.00043697,14]
[343181597,1732421434785,-524.89433307,0.00043697,2]
[343181598,1732421434795,-151.0,0.00043697,14]
[343181599,1732421434805,-513.54975531,0.00043697,2]
[343181600,1732421434815,-500.0,0.00043697,2]
[343181601,1732421434825,-538.46367619,0.00043697,2]
[343181602,1732421434836,-500.0,0.00043697,2]
[343181603,1732421434846,-529.04121582,0.00043697,2]
[343181604,1732421434856,-539.25,0.00043697,2]
[343181605,1732421434866,-513.41370185,0.00043697,2]
[343181606,1732421434876,-531.35712975,0.00043697,2]
[343181607,1732421434888,-522.57858415,0.00043697,2]
[343181608,1732421434904,-500.0,0.00043697,2]
[343181609,1732421434914,-338.44110255,0.00043697,2]
[343181610,1732421434923,-151.0,0.00043697,14]
[343181611,1732421434934,-503.48283884,0.00043697,2]
[343181612,1732421434944,-185.243443,0.00043697,14]
[343181613,1732421435119,-168.0,0.00043697,2]
[343181614,1732421435129,-500.0,0.00043697,2]
[343181615,1732421435139,-500.0,0.00043697,2]
[343181616,1732421435150,-500.0,0.00043697,2]
[343181617,1732421435159,-531.62251059,0.00043697,2]
[343181618,1732421435170,-151.0,0.00043697,14]
[343181619,1732421435181,-500.0,0.00043697,2]
[343181620,1732421435191,-151.0,0.00043697,14]
[343181621,1732421435202,-506.38891212,0.00043697,2]
[343181622,1732421435211,-151.0,0.00043697,14]
[343181623,1732421435221,-151.0,0.00043697,14]
[343181624,1732421435231,-500.0,0.00043697,2]
[343181625,1732421435242,-531.71017322,0.00043697,2]
[343181626,1732421435251,-542.24562436,0.00043697,2]
[343181627,1732421435261,-532.77325654,0.00043697,2]
[343181628,1732421435271,-515.59807345,0.00043697,2]
[343181629,1732421435281,-515.73631685,0.00043697,2]
[343181631,1732421435291,-723.02,0.00043697,2]
[343181633,1732421435300,-797.24,0.00043697,2]
[343181635,1732421435310,-513.25845951,0.00043697,2]
[343181636,1732421435320,-437.09810956,0.00043697,2]
[343181639,1732421435329,-500.0,0.00043697,2]
[343181641,1732421435339,-159.84711,0.00043697,14]
[343181642,1732421435348,-498.84426996,0.00043697,2]
[343181644,1732421435358,-535.54094118,0.00043697,2]
[343181646,1732421435367,-500.0,0.00043697,2]
[343181648,1732421435376,-151.0,0.00043697,14]
[343181649,1732421435386,-151.0,0.00043697,14]
[343181650,1732421435397,-503.96197939,0.00043697,2]
[343181651,1732421435408,-151.0,0.00043697,14]
[343181652,1732421435419,-151.0,0.00043697,14]
[343181653,1732421435428,-500.0,0.00043697,2]
[343181654,1732421435437,-512.96,0.00043697,2]
[343181655,1732421435447,-500.0,0.00043697,2]
[343181656,1732421435456,-500.0,0.00043697,2]
[343181657,1732421435466,-500.0,0.00043697,2]
[343181658,1732421435476,-151.0,0.00043697,14]
[343181659,1732421435485,-806.19,0.00043697,2]
[343181660,1732421435495,-151.0,0.00043697,14]
[343181661,1732421435505,-619.30960169,0.00043697,2]
[343181662,1732421435514,-500.0,0.00043697,2]
[343181663,1732421435523,-299.194621,0.00043697,14]
[343181664,1732421435532,-151.0,0.00043697,14]
[343181665,1732421435542,-151.0,0.00043697,14]
[343181666,1732421435552,-151.0,0.00043697,14]
[343181667,1732421435562,-151.0,0.00043697,14]
[343181668,1732421435572,-503.83006726,0.00043697,2]
[343181669,1732421435582,-151.0,0.00043697,7]
[343181670,1732421435592,-151.0,0.00043697,7]
[343181671,1732421435602,-500.0,0.00043697,2]
[343181672,1732421435612,-500.0,0.00043697,2]
[343181673,1732421435621,-500.0,0.00043697,2]
[343181674,1732421435631,-500.0,0.00043697,2]
[343181675,1732421435640,-151.0,0.00043697,14]
[343181676,1732421435653,-151.0,0.00043697,14]
[343181677,1732421435663,-270.73293,0.00043697,14]
[343181678,1732421435672,-1054.97,0.00043697,2]
[343181679,1732421435683,-500.0,0.00043697,2]
[343181680,1732421435693,-500.0,0.00043697,2]
[343181681,1732421435703,-500.0,0.00043697,2]
[343181682,1732421435713,-500.0,0.00043697,2]
[343181683,1732421435723,-747.87,0.00043697,2]
[343181684,1732421435733,-869.22,0.00043697,2]
[343181685,1732421435743,-354.22335509,0.00043697,2]
[343181686,1732421435753,-501.49231953,0.00043697,2]
[343181687,1732421435762,-500.0,0.00043697,2]
[343181688,1732421435772,-500.0,0.00043697,2]
[343181689,1732421435781,-155.563865,0.00043697,14]
[343181690,1732421435796,-614.38619287,0.00043697,2]
[343181691,1732421435806,-500.0,0.00043697,2]
[343181692,1732421435816,-151.0,0.00043697,14]
[343181693,1732421435826,-151.0,0.00043697,14]
[343181694,1732421435835,-718.12,0.00043697,2]
[343181695,1732421435845,-151.0,0.00043697,14]
[343181696,1732421435855,-500.0,0.00043697,2]
[343181697,1732421435864,-500.0,0.00043697,2]
[343181698,1732421435874,-151.0,0.00043697,14]
[343181699,1732421435885,-500.0,0.00043697,2]
[343181700,1732421435899,-507.45321064,0.00043697,2]
[343181701,1732421435909,-501.79261026,0.00043697,2]
[343181702,1732421435919,-500.0,0.00043697,2]
[343181703,1732421435929,-500.0,0.00043697,2]
[343181704,1732421435939,-500.0,0.00043697,2]
[343181705,1732421435948,-1000.00630712,0.00043697,2]
[343181706,1732421435959,-500.0,0.00043697,2]
[343181707,1732421435971,-500.0,0.00043697,2]
[343181708,1732421435981,-500.0,0.00043697,2]
[343181709,1732421435991,-259.12933943,0.00043697,2]
[343181710,1732421436002,-500.0,0.00043697,2]
[343181711,1732421436011,-500.59622441,0.00043697,2]
[343181712,1732421436021,-503.2796469,0.00043697,2]
[343181713,1732421436030,-945.01,0.00043697,2]
[343181714,1732421436040,-560.76128213,0.00043697,2]
[343181715,1732421436050,-500.0,0.00043697,2]
[343181716,1732421436060,-500.0,0.00043697,2]
[343181717,1732421436069,-500.0,0.00043697,2]
[343181718,1732421436079,-538.73800578,0.00043697,2]
[343181719,1732421436089,-500.0,0.00043697,2]
[343181720,1732421436098,-500.0,0.00043697,2]
[343181721,1732421436108,-500.0,0.00043697,2]
[343181722,1732421436118,-500.0,0.00043697,2]
[343181723,1732421436128,-500.0,0.00043697,2]
[343181724,1732421436137,-500.0,0.00043697,2]
[343181725,1732421436148,-505.60005644,0.00043697,2]
[343181726,1732421436158,-500.0,0.00043697,2]
[343181727,1732421436168,-506.08636464,0.00043697,2]
[343181728,1732421436178,-505.04855984,0.00043697,2]
[343181729,1732421436189,-500.0,0.00043697,2]
[343181730,1732421436198,-500.0,0.00043697,2]
[343181731,1732421436208,-500.0,0.00043697,2]
[343181732,1732421436218,-151.0,0.00043697,14]
[343181733,1732421436227,-151.0,0.00043697,14]
[343181734,1732421436237,-504.76051625,0.00043697,2]
[343181735,1732421436247,-151.0,0.00043697,14]
[343181736,1732421436256,-218.441117,0.00043697,14]
[343181737,1732421436265,-500.0,0.00043697,2]
[343181738,1732421436275,-783.45,0.00043697,2]
[343181739,1732421436292,-500.0,0.00043697,2]
[343181740,1732421436312,-500.0,0.00043697,2]
[343181741,1732421436329,-500.0,0.00043697,2]
[343181742,1732421436339,-500.0,0.00043697,2]
[343181743,1732421436350,-510.82702552,0.00043697,2]
[343181744,1732421436360,-500.0,0.00043697,2]
[343181745,1732421436370,-550.1924626,0.00043697,2]
[343181746,1732421436381,-500.0,0.00043697,2]
[343181747,1732421436393,-500.0,0.00043697,2]
[343181748,1732421436406,-500.0,0.00043697,2]
[343181749,1732421436416,-500.0,0.00043697,2]
[343181750,1732421436428,-500.0,0.00043697,2]
[343181751,1732421436438,-500.0,0.00043697,2]
[343181752,1732421436448,-500.0,0.00043697,2]
[343181753,1732421436459,-276.72313769,0.00043697,2]
[343181754,1732421436469,-353.58602018,0.00043697,2]
[343181755,1732421436479,-500.0,0.00043697,2]
[343181756,1732421436489,-500.0,0.00043697,2]
[343181757,1732421436500,-500.0,0.00043697,2]
[343181758,1732421436511,-500.0,0.00043697,2]
[343181759,1732421436520,-500.0,0.00043697,2]
[343181760,1732421436532,-508.14574484,0.00043697,2]
[343181761,1732421436541,-500.0,0.00043697,2]
[343181762,1732421436552,-500.0,0.00043697,2]
[343181763,1732421436564,-500.0,0.00043697,2]
[343181764,1732421436575,-500.0,0.00043697,2]
[343181765,1732421436584,-500.0,0.00043697,2]
[343181766,1732421436594,-500.0,0.00043697,2]
[343181767,1732421436603,-500.0,0.00043697,2]
[343181768,1732421436612,-599.08910844,0.00043697,2]
[343181769,1732421436623,-500.0,0.00043697,2]
[343181770,1732421436632,-185.070457,0.00043697,14]
[343181771,1732421436641,-151.0,0.00043697,14]
[343181772,1732421436653,-185.070457,0.00043697,14]
[343181773,1732421436663,-151.0,0.00043697,14]
[343181774,1732421436673,-500.0,0.00043697,2]
[343181775,1732421436682,-185.070457,0.00043697,14]
[343181776,1732421436693,-151.0,0.00043697,14]
[343181777,1732421436703,-504.04677161,0.00043697,2]
[343181778,1732421436712,-185.070457,0.00043697,14]
[343181779,1732421436721,-151.0,0.00043697,14]
[343181780,1732421436732,-500.0,0.00043697,2]
[343181781,1732421436742,-365.453261,0.00043697,14]
[343181782,1732421436752,-500.0,0.00043697,2]
[343181783,1732421436762,-365.453261,0.00043697,14]
[343181784,1732421436771,-185.070457,0.00043697,14]
[343181785,1732421436781,-365.453261,0.00043697,14]
[343181786,1732421436791,-185.070457,0.00043697,14]
[343181787,1732421436801,-365.453261,0.00043697,14]
[343181788,1732421436810,-185.070457,0.00043697,14]
[343181789,1732421436820,-185.070457,0.00043697,14]
[343181790,1732421436829,-500.0,0.00043697,2]
[343181791,1732421436839,-500.0,0.00043697,2]
[343181792,1732421436848,-500.0,0.00043697,2]
[343181793,1732421436858,-500.0,0.00043697,2]
[343181794,1732421436868,-500.0,0.00043697,2]
[343181795,1732421436878,-613.81,0.00043697,2]
[343181796,1732421436890,-613.81,0.00043697,2]
[343181797,1732421436904,-151.0,0.00043697,14]
[343181798,1732421436913,-500.0,0.00043697,2]
[343181799,1732421436923,-151.0,0.00043697,14]
[343181800,1732421436934,-151.0,0.00043697,14]
[343181801,1732421436944,-440.30222803,0.00043697,2]
[343181802,1732421436954,-151.0,0.00043697,14]
[343181803,1732421436963,-151.0,0.00043697,14]
[343181804,1732421436975,-216.743512,0.00043697,14]
[343181805,1732421436984,-151.0,0.00043697,14]
[343181806,1732421436994,-151.0,0.00043697,14]
[343181807,1732421437004,-500.0,0.00043697,2]
[343181808,1732421437013,-500.0,0.00043697,2]
[343181809,1732421437023,-504.00224855,0.00043697,2]
[343181810,1732421437033,-500.0,0.00043697,2]
[343181811,1732421437043,-500.0,0.00043697,2]
[343181812,1732421437052,-948.38,0.00043697,2]
[343181813,1732421437063,-500.0,0.00043697,2]
[343181814,1732421437073,-500.0,0.00043697,2]
[343181815,1732421437082,-500.0,0.00043697,2]
[343181816,1732421437092,-500.0,0.00043697,2]
[343181817,1732421437102,-500.0,0.00043697,2]
[343181818,1732421437111,-500.0,0.00043697,2]
[343181819,1732421437121,-500.0,0.00043697,2]
[343181820,1732421437131,-553.7288263,0.00043697,2]
[343181821,1732421437141,-151.0,0.00043697,14]
[343181822,1732421437152,-227.45693056,0.00043697,2]
[343181823,1732421437162,-151.0,0.00043697,14]
[343181824,1732421437172,-281.87333269,0.00043697,2]
[343181825,1732421437181,-151.0,0.00043697,14]
[343181826,1732421437191,-151.0,0.00043697,14]
[343181827,1732421437200,-514.30580602,0.00043697,2]
[343181828,1732421437210,-151.0,0.00043697,14]
[343181829,1732421437219,-500.0,0.00043697,120]
[343181830,1732421437229,-151.0,0.00043697,14]
[343181831,1732421437239,-151.0,0.00043697,14]
[343181832,1732421437249,-151.0,0.00043697,14]
[343181833,1732421437259,-151.0,0.00043697,14]
[343181834,1732421437269,-500.0,0.00043697,2]
[343181835,1732421437279,-500.0,0.00043697,2]
[343181836,1732421437289,-153.205157,0.00043697,14]
[343181837,1732421437299,-518.71076795,0.00043697,2]
[343181838,1732421437309,-500.0,0.00043697,2]
[343181839,1732421437319,-621.57159028,0.00043697,2]
[343181840,1732421437328,-500.0,0.00043697,2]
[343181841,1732421437338,-502.39481066,0.00043697,2]
[343181842,1732421437348,-285.44459893,0.00043697,2]
[343181843,1732421437358,-500.0,0.00043697,2]
[343181844,1732421437368,-500.0,0.00043697,2]
[343181845,1732421437377,-500.0,0.00043697,2]
[343181846,1732421437386,-500.0,0.00043697,2]
[343181847,1732421437397,-500.0,0.00043697,2]
[343181848,1732421437408,-151.0,0.00043697,14]
[343181849,1732421437418,-500.0,0.00043697,2]
[343181850,1732421437427,-500.0,0.00043697,2]
[343181851,1732421437438,-500.0,0.00043697,2]
[343181852,1732421437447,-151.0,0.00043697,14]
[343181853,1732421437456,-286.480296,0.00043697,14]
[343181854,1732421437465,-151.0,0.00043697,14]
[343181855,1732421437475,-151.0,0.00043697,14]
[343181856,1732421437484,-3544.03,0.00043697,2]
[343181857,1732421437494,-430.79885918,0.00043697,2]
[343181858,1732421437503,-151.0,0.00043697,14]
[343181859,1732421437513,-500.0,0.00043697,2]
[343181860,1732421437522,-500.0,0.00043697,2]
[343181861,1732421437531,-151.0,0.00043697,14]
[343181862,1732421437540,-152.192451,0.00043697,14]
[343181863,1732421437550,-513.48212471,0.00043697,2]
[343181864,1732421437559,-151.0,0.00043697,14]
[343181865,1732421437568,-500.0,0.00043697,2]
[343181866,1732421437577,-151.0,0.00043697,14]
[343181867,1732421437587,-500.0,0.00043697,2]
[343181868,1732421437596,-625.1710247,0.00043697,2]
[343181869,1732421437606,-500.0,0.00043697,2]
[343181870,1732421437616,-151.0,0.00043697,14]
[343181871,1732421437626,-151.0,0.00043697,14]
[343181872,1732421437635,-151.0,0.00043697,14]
[343181873,1732421437644,-151.0,0.00043697,14]
[343181874,1732421437654,-151.0,0.00043697,14]
[343181875,1732421437664,-151.0,0.00043697,14]
[343181876,1732421437673,-151.0,0.00043697,14]
[343181877,1732421437682,-151.512578,0.00043697,14]
[343181878,1732421437692,-503.15247523,0.00043697,2]
[343181879,1732421437702,-611.03,0.00043697,2]
[343181880,1732421437712,-500.0,0.00043697,2]
[343181881,1732421437722,-500.0,0.00043697,2]
[343181882,1732421437733,-500.0,0.00043697,2]
[343181884,1732421437743,-500.0,0.00043697,2]
[343181885,1732421437754,-500.0,0.00043697,2]
[343181886,1732421437764,-634.49507143,0.00043697,2]
[343181887,1732421437774,-568.86384023,0.00043697,2]
[343181888,1732421437784,-151.0,0.00043697,14]
[343181889,1732421437793,-507.32088331,0.00043697,2]
[343181890,1732421437803,-537.02351558,0.00043697,2]
[343181892,1732421437812,-1248.74,0.00043697,2]
[343181893,1732421437821,-154.332712,0.00043697,14]
[343181894,1732421437831,-1248.74,0.00043697,2]
[343181895,1732421437840,-500.0,0.00043697,2]
[343181896,1732421437849,-500.0,0.00043697,2]
[343181897,1732421437859,-500.0,0.00043697,2]
[343181899,1732421437868,-1000.0,0.00043697,2]
[343181901,1732421437877,-500.0,0.00043697,2]
[343181903,1732421437887,-505.23253769,0.00043697,2]
[343181904,1732421437898,-500.0,0.00043697,2]
[343181905,1732421437908,-500.0,0.00043697,2]
[343181906,1732421437917,-632.5067382,0.00043697,2]
[343181907,1732421437926,-725.44,0.00043697,2]
[343181908,1732421437937,-725.44,0.00043697,2]
[343181909,1732421437947,-508.32962357,0.00043697,2]
[343181910,1732421437957,-624.66856921,0.00043697,2]
[343181911,1732421437966,-503.10547719,0.00043697,2]
[343181912,1732421437977,-500.0,0.00043697,2]
[343181913,1732421437987,-500.0,0.00043697,2]
[343181914,1732421437997,-500.0,0.00043697,2]
[343181915,1732421438007,-707.09340648,0.00043697,2]
[343181916,1732421438016,-500.0,0.00043697,2]
[343181917,1732421438026,-500.0,0.00043697,2]
[343181918,1732421438036,-505.58803657,0.00043697,2]
[343181919,1732421438046,-500.0,0.00043697,2]
[343181920,1732421438055,-1622.28,0.00043697,2]
[343181921,1732421438064,-151.0,0.00043697,14]
[343181922,1732421438074,-500.0,0.00043697,2]
[343181923,1732421438083,-491.589946,0.00043697,14]
[343181924,1732421438093,-500.0,0.00043697,2]
[343181925,1732421438102,-491.589946,0.00043697,14]
[343181926,1732421438112,-491.589946,0.00043697,14]
[343181927,1732421438121,-491.589946,0.00043697,14]
[343181928,1732421438130,-491.589946,0.00043697,14]
[343181929,1732421438140,-491.589946,0.00043697,14]
[343181930,1732421438152,-491.589946,0.00043697,14]
[343181931,1732421438161,-1601.16,0.00043697,2]
[343181932,1732421438172,-491.589946,0.00043697,14]
[343181933,1732421438181,-1601.16,0.00043697,2]
[343181934,1732421438191,-491.589946,0.00043697,14]
[343181935,1732421438201,-491.589946,0.00043697,14]
[343181936,1732421438211,-491.589946,0.00043697,14]
[343181937,1732421438221,-491.589946,0.00043697,14]
[343181938,1732421438231,-1010.91,0.00043697,2]
[343181939,1732421438241,-491.589946,0.00043697,14]
[343181940,1732421438250,-491.589946,0.00043697,14]
[343181941,1732421438259,-491.589946,0.00043697,14]
[343181942,1732421438269,-500.0,0.00043697,2]
[343181943,1732421438279,-491.589946,0.00043697,14]
[343181944,1732421438289,-507.60567494,0.00043697,2]
[343181945,1732421438298,-491.589946,0.00043697,14]
[343181946,1732421438308,-491.589946,0.00043697,14]
[343181947,1732421438318,-491.589946,0.00043697,14]
[343181948,1732421438327,-500.0,0.00043697,2]
[343181949,1732421438337,-491.589939,0.00043697,14]
[343181950,1732421438348,-500.0,0.00043697,2]
[343181951,1732421438357,-1151.99,0.00043697,2]
[343181952,1732421438367,-500.0,0.00043697,2]
[343181953,1732421438377,-481.34217138,0.00043697,2]
[343181954,1732421438387,-500.0,0.00043697,2]
[343181955,1732421438541,-500.0,0.00043697,2]
[343181956,1732421438552,-500.0,0.00043697,2]
[343181957,1732421438562,-505.12058141,0.00043697,2]
[343181958,1732421438571,-500.0,0.00043697,2]
[343181959,1732421438581,-500.0,0.00043697,2]
[343181960,1732421438591,-500.0,0.00043697,2]
[343181961,1732421438601,-500.0,0.00043697,2]
[343181962,1732421438610,-522.44848778,0.00043697,2]
[343181963,1732421438620,-556.01321584,0.00043697,2]
[343181964,1732421438630,-500.0,0.00043697,2]
[343181965,1732421438639,-500.0,0.00043697,2]
[343181966,1732421438653,-500.0,0.00043697,2]
[343181967,1732421438662,-500.0,0.00043697,2]
[343181968,1732421438671,-500.0,0.00043697,2]
[343181969,1732421438681,-547.74659193,0.00043697,2]
[343181970,1732421438691,-723.91,0.00043697,2]
[343181971,1732421438702,-500.0,0.00043697,2]
[343181972,1732421438711,-500.0,0.00043697,2]
[343181973,1732421438721,-500.0,0.00043697,2]
[343181974,1732421438730,-528.13669806,0.00043697,2]
[343181975,1732421438740,-500.0,0.00043697,2]
[343181976,1732421438750,-1046.95,0.00043697,2]
[343181977,1732421438759,-500.0,0.00043697,2]
[343181978,1732421438769,-500.0,0.00043697,2]
[343181979,1732421438779,-263.99017435,0.00043697,2]
[343181980,1732421438789,-500.0,0.00043697,2]
[343181981,1732421438798,-500.0,0.00043697,2]
[343181982,1732421438809,-500.0,0.00043697,2]
[343181983,1732421438819,-1000.0,0.00043697,2]
[343181984,1732421438828,-482.16633996,0.00043697,2]
[343181985,1732421438838,-500.0,0.00043697,2]
[343181986,1732421438847,-500.0,0.00043697,2]
[343181987,1732421438856,-547.81553114,0.00043697,2]
[343181988,1732421438866,-500.0,0.00043697,2]
[343181989,1732421438875,-500.0,0.00043697,2]
[343181990,1732421438885,-500.0,0.00043697,2]
[343181991,1732421438894,-974.29,0.00043697,2]
[343181992,1732421438909,-500.0,0.00043697,2]
[343181993,1732421438919,-500.0,0.00043697,2]
[343181994,1732421438928,-506.77067578,0.00043697,2]
[343181995,1732421438938,-500.0,0.00043697,2]
[343181996,1732421438949,-500.0,0.00043697,2]
[343181997,1732421438959,-500.0,0.00043697,2]
[343181998,1732421438968,-500.0,0.00043697,2]
[343181999,1732421438979,-500.0,0.00043697,2]
[343182000,1732421438989,-500.0,0.00043697,2]
[343182001,1732421438999,-195.831551,0.00043697,14]
[343182002,1732421439008,-508.51562983,0.00043697,2]
[343182003,1732421439018,-280.54723256,0.00043697,2]
[343182004,1732421439028,-151.0,0.00043697,14]
[343182005,1732421439037,-220.086615,0.00043697,14]
[343182006,1732421439046,-500.0,0.00043697,2]
[343182007,1732421439056,-500.0,0.00043697,2]
[343182008,1732421439066,-500.0,0.00043697,2]
[343182009,1732421439075,-500.0,0.00043697,2]
[343182010,1732421439085,-500.0,0.00043697,2]
[343182011,1732421439094,-500.0,0.00043697,2]
[343182012,1732421439104,-249.73711809,0.00043697,2]
[343182013,1732421439114,-501.74,0.00043697,2]
[343182014,1732421439124,-501.74,0.00043697,2]
[343182015,1732421439134,-500.0,0.00043697,2]
[343182016,1732421439144,-500.0,0.00043697,2]
[343182017,1732421439160,-500.0,0.00043697,2]
[343182018,1732421439170,-2200.27,0.00043697,2]
[343182019,1732421439179,-500.0,0.00043697,2]
[343182020,1732421439188,-500.0,0.00043697,2]
[343182021,1732421439198,-500.0,0.00043697,2]
[343182022,1732421439208,-500.0,0.00043697,2]
[343182023,1732421439218,-500.0,0.00043697,2]
[343182024,1732421439228,-500.0,0.00043697,2]
[343182025,1732421439237,-233.90730604,0.00043697,2]
[343182026,1732421439247,-2009.78647313,0.00043697,120]
[343182027,1732421439256,-500.0,0.00043697,2]
[343182028,1732421439265,-628.78,0.00043697,2]
[343182029,1732421439275,-195.06279576,0.00043697,2]
[343182030,1732421439284,-10000.0,0.00043697,14]
[343182031,1732421439294,-628.78,0.00043697,2]
[343182032,1732421439303,-10000.0,0.00043697,14]
[343182033,1732421439313,-500.0,0.00043697,2]
[343182034,1732421439322,-500.0,0.00043697,2]
[343182035,1732421439333,-10000.0,0.00043697,14]
[343182036,1732421439342,-10000.0,0.00043697,14]
[343182037,1732421439352,-10000.0,0.00043697,14]
[343182038,1732421439361,-10000.0,0.00043697,14]
[343182039,1732421439371,-10000.0,0.00043697,14]
[343182040,1732421439380,-10000.0,0.00043697,14]
[343182041,1732421439389,-10000.0,0.00043697,14]
[343182042,1732421439401,-1850.04,0.00043697,2]
[343182043,1732421439410,-10000.0,0.00043697,14]
[343182044,1732421439419,-4701.61,0.00043697,2]
[343182045,1732421439429,-10000.0,0.00043697,14]
[343182046,1732421439440,-10000.0,0.00043697,14]
[343182047,1732421439449,-10000.0,0.00043697,14]
[343182048,1732421439458,-10000.0,0.00043697,14]
[343182049,1732421439468,-10000.0,0.00043697,14]
[343182050,1732421439478,-10000.0,0.00043697,14]
[343182051,1732421439487,-10000.0,0.00043697,14]
[343182052,1732421439499,-10000.0,0.00043697,14]
[343182053,1732421439508,-10000.0,0.00043697,14]
[343182054,1732421439518,-10000.0,0.00043697,14]
[343182055,1732421439528,-505.10575991,0.00043697,2]
[343182056,1732421439538,-10000.0,0.00043697,14]
[343182057,1732421439547,-10000.0,0.00043697,14]
[343182058,1732421439557,-180.565581,0.00043697,14]
[343182059,1732421439567,-500.0,0.00043697,2]
[343182060,1732421439577,-10000.0,0.00043697,14]
[343182061,1732421439587,-10000.0,0.00043697,14]
[343182062,1732421439596,-10000.0,0.00043697,14]
[343182063,1732421439606,-10000.0,0.00043697,14]
[343182064,1732421439615,-10000.0,0.00043697,14]
[343182065,1732421439624,-500.0,0.00043697,2]
[343182066,1732421439634,-10000.0,0.00043697,14]
[343182067,1732421439644,-500.0,0.00043697,2]
[343182068,1732421439655,-10000.0,0.00043697,14]
[343182069,1732421439665,-10000.0,0.00043697,14]
[343182070,1732421439675,-500.0,0.00043697,2]
[343182071,1732421439685,-10000.0,0.00043697,14]
[343182072,1732421439695,-10000.0,0.00043697,14]
[343182073,1732421439704,-10000.0,0.00043697,14]
[343182074,1732421439715,-484.05600796,0.00043697,2]
[343182075,1732421439725,-240.53395005,0.00043697,2]
[343182076,1732421439735,-10000.0,0.00043697,14]
[343182077,1732421439745,-10000.0,0.00043697,14]
[343182078,1732421439755,-10000.0,0.00043697,14]
[343182079,1732421439765,-10000.0,0.00043697,14]
[343182080,1732421439775,-10000.0,0.00043697,14]
[343182081,1732421439785,-500.0,0.00043697,2]
[343182082,1732421439795,-2511.824953,0.00043697,14]
[343182083,1732421439804,-500.0,0.00043697,2]
[343182084,1732421439814,-500.0,0.00043697,2]
[343182085,1732421439824,-526.68339441,0.00043697,2]
[343182086,1732421439834,-505.31236575,0.00043697,2]